Cogmind - Beta 15 @@@ ROGUE MODE // 2025.06.11 @ 19:14:41 Player: CheifClapdad Result: Destroyed by G-34 Mercenary with Small Laser Performance ------------- Evolutions (0) 0 Regions Visited (1) 200 Robots Destroyed (13) 65 Value Destroyed (286) 286 Prototype IDs (0) 0 Alien Tech Used (0) 0 Bonus (0) 0 TOTAL SCORE: 551 Bonus ------- None Cogmind --------- Core Integrity 0/250 Matter 295/300 Energy 100/100 System Corruption 0% Temperature Cool (6) Movement Core (700) Ox13 Location -10/Materials Parts ------- > --- POWER (1) -------- (None) > --- PROPULSION (2) --- (None) > --- UTILITY (2) ------ High-capacity Storage Unit > --- WEAPON (2) ------- (None) > --- INVENTORY (20) --- High-capacity Storage Unit Peak State ------------ > --- POWER ------------ Light Ion Engine > --- PROPULSION ------- Light Treads Wheel > --- UTILITY ---------- Small Storage Unit High-capacity Storage Unit > --- WEAPON ----------- Medium Laser Small Laser > --- INVENTORY -------- Light Ion Engine Light Treads Wheel [Rating: 7] Favorites ----------- Power Light Ion Engine Engine Light Ion Engine Propulsion Light Treads Treads Light Treads Wheel Wheel Utility High-capacity Storage Unit Storage High-capacity Storage Unit Weapon Medium Laser Energy Gun Medium Laser Ballistic Gun Light Assault Rifle Build | -11 -10 ------- Run | Yrd Mat Slots Evolved . | . . Power . | . . Propulsion . | . . Utility . | . . Weapon . | . . Parts Attached 15 | 7 8 Power 2 | 1 1 Engine 2 | 1 1 Core . | . . Reactor . | . . Propulsion 6 | 2 4 Treads 2 | 1 1 Leg . | . . Wheel 4 | 1 3 Hover . | . . Flight . | . . Utility 2 | 1 1 Device . | . . Storage 2 | 1 1 Processor . | . . Hackware . | . . Protection . | . . Artifact . | . . Weapon 5 | 3 2 Energy Gun 4 | 3 1 Energy Cannon . | . . Ballistic Gun 1 | . 1 Ballistic Cannon . | . . Launcher . | . . Special Weapon . | . . Impact Weapon . | . . Slashing Weapon . | . . Piercing Weapon . | . . Special Melee Weapon . | . . Unidentified Prototypes . | . . Parts Lost 9 | . 9 Power 2 | . 2 Propulsion 4 | . 4 Utility . | . . Weapon 3 | . 3 Highest Loss Streak 9 | . 9 To Critical Strikes . | . . Average Backups 2 | 2 2 Power . | . . Propulsion . | 1 . Utility . | . . Weapon . | 1 . Tool/Special . | . . Unused Backups 1 | . 1 Power . | . . Propulsion . | . . Utility 1 | . 1 Weapon . | . . Tool/Special . | . . Average Slot Usage (%) 73 | . 73 Engine 13 | . 13 Treads 16 | . 16 Wheel 7 | . 7 Storage 17 | . 17 Energy Gun 16 | . 16 Ballistic Gun 1 | . 1 Peak Build Rating 7 | 6 7 Average Rating 4 | 4 5 On Entrance 3 | . 6 Naked Turns . | . . Heaviest Build 51 | 11 51 Greatest Support 40 | 20 40 Greatest Overweight (x) 16 | 2 16 Average Overweight (x) 2 | . 3 Largest Inventory Capacity 20 | 8 20 Average Capacity 16 | 7 18 Most Carried 5 | 5 4 Average Carried 2 | 2 2 Final Capacity 20 | 8 20 Final Carried 3 | 3 1 Class Distribution -------------------- 100% | Mutant Dominant Class ---------------- Mutant | -10/Materials Resources | -11 -10 ----------- Run | Yrd Mat Matter Collected 360 | 194 166 Remotely . | . . Salvage Created 339 | . 339 Parts 27 | . 27 Haulers Intercepted . | . . Recyclers Shooed 2 | . 2 Parts Field Recycled . | . . Retrieved Matter . | . . Parts Self-Destructed . | . . Prevented . | . . Kills | -11 -10 ------- Run | Yrd Mat Combat Hostiles Destroyed 9 | . 9 Guns 9 | . 9 Classes Destroyed 4 | . 4 Worker 3 | . 3 Watcher 1 | . 1 Swarmer 3 | . 3 Grunt 6 | . 6 Best Kill Streak 9 | . 9 Combat Bots Only 7 | . 7 Max Kills in Single Turn 1 | . 1 Gunslinging . | . . Exploded . | . . Melee . | . . Uniques/NPCs Destroyed . | . . Combat | -11 -10 -------- Run | Yrd Mat Hostile Shots Fired 84 | . 84 Missed 18 | . 18 Hits 66 | . 66 Projectile 66 | . 66 Damage Taken 896 | . 896 Core 259 | . 259 Absorbed by Shields . | . . Core Remaining (%) 100 | 100 . Volleys Fired 39 | . 39 Largest 2 | . 2 Hottest 90 | . 90 Shots Fired 48 | . 48 Gun 48 | . 48 Cannon . | . . Launcher . | . . Special . | . . Kinetic 8 | . 8 Thermal 40 | . 40 Explosive . | . . Electromagnetic . | . . Robot Hit Streak 6 | . 6 Robot Miss Streak 2 | . 2 Penetration Max . | . . Secondary Targets 2 | . 2 Max Gunslinging Chain 1 | . 1 Shots Hit Robots 34 | . 34 Core Hits 23 | . 23 Critical Kills . | . . Critical Parts Destroyed 1 | . 1 Critical Strikes 8 | . 8 Burn 7 | . 7 Destroy 1 | . 1 Melee Attacks . | . . Impact . | . . Slashing . | . . Piercing . | . . Sneak Attacks . | . . Combat Hostiles . | . . Follow-up Attacks . | . . Damage Inflicted 478 | . 478 Guns 424 | . 424 Cannons . | . . Explosions 54 | . 54 Melee . | . . Ramming . | . . Kinetic 63 | . 63 Thermal 361 | . 361 Explosive 54 | . 54 Electromagnetic . | . . Impact . | . . Slashing . | . . Piercing . | . . Highest Corruption . | . . Average Corruption . | . . Corruption Purged . | . . Corruption Blocked . | . . Overload Shots . | . . Overflow Damage 34 | . 34 Projectiles . | . . Explosions 34 | . 34 Melee . | . . Knockbacks . | . . Impact . | . . Kinetic . | . . Secondary . | . . Self-Inflicted Damage 98 | . 98 Shots 1 | . 1 Rammed . | . . Targets Rammed . | . . Kicked . | . . Crushed . | . . Highest Temperature 300 | . 300 Average Temperature 86 | . 86 Received Heat Transfer 405 | . 405 Siege Activations . | . . Martial Activations . | . . Shielding Activations . | . . Robots Disrupted . | . . Combat Hostiles . | . . Robots Corrupted . | . . Combat Hostiles . | . . Parts Fried . | . . Impact Corruptions . | . . Robots Melted . | . . Combat Hostiles . | . . Parts Melted 3 | . 3 Heat Transferred 1555 | . 1555 Parts Sabotaged . | . . Parts Stolen . | . . Parts Stripped . | . . Power Chain Reactions . | . . Alert | -11 -10 ------- Run | Yrd Mat Maximum Alert Level . | . . Low Security (%) 100 | 100 100 Level 1 . | . . Level 2 . | . . Level 3 . | . . Level 4 . | . . Level 5 . | . . High Security . | . . Max Security . | . . Peak Influence 174 | . 174 Initial . | . . Average 17 | . 22 Influence Increases 307 | . 307 Destroy 0b10 Robot/C 180 | . 180 Destroy 0b10 Robot/NC 20 | . 20 Destroy Leader 32 | . 32 Disable Machine 30 | . 30 Destroy Structure 30 | . 30 Lose Combat Pursuer 15 | . 15 Influence Decreases 166 | . 166 Time Decay 76 | . 76 Lost Part 90 | . 90 Squads Dispatched 2 | . 2 Investigation 1 | . 1 Extermination . | . . Reinforcement 1 | . 1 Assault . | . . Garrison . | . . Intercept . | . . Searches Triggered . | . . Construction Impeded . | . . Haulers Reinforced . | . . Active Scanning Responses . | . . Cargo Convoy Interrupts . | . . Stealth | -11 -10 --------- Run | Yrd Mat Distress Signals 2 | . 2 Communications Jammed . | . . Distress Signals . | . . Times Spotted 21 | . 21 Peak Tracking Total 9 | . 9 Tactical Retreats 1 | . 1 Traps | -11 -10 ------- Run | Yrd Mat Traps Triggered 3 | . 3 Indirectly . | . . Trap Hack Attempts . | . . Triggered . | . . Disarmed . | . . Reprogrammed . | . . Reused . | . . Traps Extracted . | . . Installed . | . . Triggered . | . . Machines | -11 -10 ---------- Run | Yrd Mat Machines Disabled 2 | . 2 Max in Single Turn 2 | . 2 Machines Repaired . | . . Machines Dismantled . | . . Machines Sabotaged . | . . Overloaded Fab Kills . | . . Hacking | -11 -10 --------- Run | Yrd Mat Machines Accessed . | . . Terminals . | . . Fabricators . | . . Repair Stations . | . . Recycling Units . | . . Scanalyzers . | . . Garrison Access . | . . Total Hacks . | . . Successful . | . . Failed . | . . Catastrophic . | . . Database Lockouts . | . . Manual . | . . Terminals . | . . Fabricators . | . . Repair Stations . | . . Recycling Units . | . . Scanalyzers . | . . Garrison Access . | . . Terminal Hacks . | . . Fabricator Hacks . | . . Repair Station Hacks . | . . Recycling Unit Hacks . | . . Scanalyzer . | . . Garrison Access Hacks . | . . Unauthorized Hacks . | . . Terminals . | . . Fabricators . | . . Repair Stations . | . . Recycling Units . | . . Scanalyzers . | . . Garrison Access . | . . Data Cores Recovered . | . . Used . | . . Hacking Detections . | . . Full Trace Events . | . . Feedback Events . | . . Feedback Blocked . | . . Robot Schematics Acquired . | . . Robots Built . | . . Authchips . | . . Time . | . . Total Robot Build Rating . | . . Part Schematics Acquired . | . . Parts Built . | . . Authchips . | . . Time . | . . Total Part Build Rating . | . . Parts Repaired . | . . Time . | . . Parts Recycled . | . . Recycled Matter . | . . Retrieved Matter . | . . Retrieved Components . | . . Parts Scanalyzed . | . . Part Schematics Acquired . | . . Parts Damaged . | . . Bothacking | -11 -10 ------------ Run | Yrd Mat Used RIF Installer . | . . Robots Hacked . | . . Non-combat . | . . Combat . | . . Robot Hacks Applied . | . . Relay Couplers Released . | . . Fabnet Peak Effective % . | . . Robots Rewired . | . . Allies Hacked . | . . Hacks Repelled . | . . Allies | -11 -10 -------- Run | Yrd Mat Total Allies . | . . Largest Group . | . . Highest-Rated Group . | . . Highest-Rated Ally . | . . Total Orders . | . . Ally Attacks . | . . Total Damage . | . . Kills . | . . Allies Corrupted . | . . Allies Melted . | . . Intel | -11 -10 ------- Run | Yrd Mat Active Infowar (turns) . | . . Robot Analysis Total . | . . Derelict Logs Recovered . | . . Drone Launches . | . . Drone Recoveries . | . . Exploration | -11 -10 ------------- Run | Yrd Mat Turns Passed 536 | 120 416 Spaces Moved 266 | 97 169 Core 31 | 27 4 Treads 74 | 24 50 Legs . | . . Wheels 161 | 46 115 Hover . | . . Flight . | . . Fastest Speed 50 | 50 95 Average Speed 154 | 106 181 Slowest Speed 850 | 160 850 Overloaded Moves . | . . Propulsion Burnouts . | . . Robots Hopped . | . . Potential Cave-ins . | . . Cave-ins Triggered . | . . Exploration Rate (%) 24 | 6 43 Regions Visited 1 Branch Regions . Pre-discovered Areas . | . . Known Exits Taken . | . . Unknown Exits Taken 1 | 1 . Scrap Searched . | . . Spaces Dug . | . . Terrain Destroyed 25 | . 25 Melee . | . . Projectile . | . . AOE 25 | . 25 Terrain Rammed . | . . Walls Destroyed . | . . Machines Disabled . | . . Actions | -11 -10 --------- Run | Yrd Mat Total 346 | 112 234 Wait 13 | 2 11 Move 265 | 96 169 Hop . | . . Pick Up 8 | 6 2 Fast Attach 11 | 4 7 Attach 7 | 3 4 Detach . | . . Swap 1 | . 1 Drop 2 | 1 1 Fire 39 | . 39 Melee . | . . Ram . | . . Kick . | . . Crush . | . . Escape Stasis . | . . Rewire . | . . Trap . | . . Miscellaneous . | . . Route ------- -11/Scrapyard -10/Materials History --------- Turn | Location | Event 17 | -11/Scrapyard | Discovered new exit (range 16) 121 | -11/Scrapyard | Entered Materials 313 | -10/Materials | Build established: Mutant 501 | -10/Materials | Core integrity fell below 50% 531 | -10/Materials | Core integrity fell below 20% 537 | -10/Materials | Destroyed by G-34 Mercenary with Small Laser Last Messages --------------- 00527_ K-01 Serf collects debris. 00527_ U-05 Engineer lays Concrete. 00527_ U-05 Engineer builds a Wall. 00528_ U-05 Engineer lays Concrete. 00530_ W-16 Scout sends out distress signal. 00530_ U-05 Engineer builds a Wall. 00530_ U-05 Engineer lays Concrete. 00530_ U-05 Engineer builds a Wall. 00531_ U-05 Engineer lays Concrete. 00531_ U-05 Engineer builds a Wall. 00532_ U-05 Engineer lays Concrete. 00532_ K-01 Serf collects debris. 00532_ Acquired Wheel. 00533_ U-05 Engineer lays Concrete. 00535_ Wheel destroyed. 00535_ U-05 Engineer lays Concrete. 00536_ K-01 Serf collects debris. 00536_ U-05 Engineer lays Concrete. 00536_ U-05 Engineer builds a Wall. 00536_ U-05 Engineer lays Concrete. Map ----- +----------------------------------------------------+ | ????????????????????????????????????????????????? | | ????????????????????????????????????????????????? | | ????????????????????????????????????????????????? | | ????????????????????????????????????????????????? | | ????????????????????????????????????????????????? | | ????????????????????????????????????????????????? | | ????????????????????????????????????????????????? | | ??????????????????????????????? ??????????????? | | ??????????????????????????????+ +???????????### | | ??????????????????????????????# #???????????# | | ???????????????????????????#### #???????????# | | ??????????????????????????? # #???????????# | | ???????????????????????????" # #???????????# | | ???????????????????????????" # #???????????? | | ??????????????????????????"" # #?????????#### | | ????????????????????## ?"""" + #?????????# # | | ???????????????????? + """"" # #??????????? | | ?????????????????????# """"" # #????????????# | | ?????????????????????? """"" # #????????????# | | ??????????????????????? =%= # #????????????# | | ??????????????????????#### ###[ ############## | | ??????????????????#???# k # | | ??????????????????# ### u + | | ??????????????????#[%* #% """ "" | | ??????????????????# g # """"" "" | | ?????????????????## @ u #" """"" "" | | ?????????????? + %*u=#T """"" | | ?????????????| ## #### """ | | ??????????????????# s g # | | ??????????????????# ws """ # | | ??????????????????# # """ !# ############### | | ??????????????????# s # """ # #?????????????? | | ??????????????????# # # #?????????????? | | ??????????????????# # # #?????????????? | | ??????????????????# ?######## #?????????????? | | ??????????????????# ????????# #?????????????? | | ??????????????????# ????????# #?????????????? | | ??????????????????# ?????????? ??????????????? | | ??????????????????# ???????????????????????????? | | ??????????????????# ???????????????????????????? | | ????????????????????????????????????????????????? | | ????????????????????????????????????????????????? | | ????????????????????????????????????????????????? | | ????????????????????????????????????????????????? | | ????????????????????????????????????????????????? | | ????????????????????????????????????????????????? | | ????????????????????????????????????????????????? | | ????????????????????????????????????????????????? | | ????????????????????????????????????????????????? | | ????????????????????????????????????????????????? | +----------------------------------------------------+ Best States ------------- Heat Dissipation 25 Energy Generation 10 Energy Capacity 125 Matter Stores 300 Matter Capacity 300 Sight Range 16 Terrain Scan Density 10 Evasion (%) 50 Recoil Reduction 2 Item Schematics ----------------- None Robot Schematics ------------------ None Fabricated ------------ Nothing Repaired ---------- Nothing Alien Tech Used ----------------- None Achievements -------------- None Challenges ------------ None Game ------ Seed MakeshiftTerrainInterrupter Manual? 0 Play Time 00:11:31 Cumulative 72.4 hours Start 2025.06.11 @ 03:39:18 End 2025.06.11 @ 19:14:41 Sessions 1 Manual Loads 0 Difficulty Rogue Special Mode None Game No. 96 Rogue 96 Adventurer 0 Explorer 0 Win Type - Total 1 Types 1/0/0/0/0/0/0/0/0/0 Lore% 32 Gallery% 45 Achievement% 39 Wizard Run 0 Options --------- Layout 1 ASCII 0 Keyboard 0 Movement Arrows Keybinds 0 Fullscreen 1 Font 24/Smallcaps Map View 50x35 Zoom Use 0% Tactical HUD 1 Map Filters NONE Filters NONE Steam X RUN: f27cbf45-8304-43b6-93a1-5791fc70e404